fUST/lending_fUST_20240829
["ID","MTS","AMOUNT","RATE_DAILY","PERIOD"]
[336472666,1724861499144,-6989.42,0.00024242,5]
[336472667,1724861499154,-3432.15,0.00024242,5]
[336472668,1724861499168,-931.19,0.00024242,5]
[336472669,1724861499178,-817.55,0.00024242,5]
[336472670,1724861499187,-1715.86,0.00024242,5]
[336472671,1724861499197,-2215.78,0.00024242,5]
[336472672,1724861499207,-991.34,0.00024242,5]
[336472673,1724861499217,-1028.21,0.00024242,5]
[336472674,1724861499227,-1049.04,0.00024242,5]
[336472675,1724861499240,-500.0,0.00024242,5]
[336472676,1724861499250,-1574.19,0.00024242,5]
[336472677,1724861499260,-1419.19,0.00024242,5]
[336472678,1724861499273,-3455.34,0.00024242,5]
[336472679,1724861499284,-1220.18,0.00024242,5]
[336472680,1724861499294,-787.68,0.00024242,5]
[336472681,1724861499305,-1574.41,0.00024242,5]
[336472682,1724861499319,-1161.17,0.00024242,5]
[336472683,1724861499328,-1086.03,0.00024242,5]
[336472684,1724861499338,-2104.49,0.00024242,5]
[336472685,1724861499348,-600.84,0.00024242,5]
[336472686,1724861499357,-2447.77,0.00024242,5]
[336472687,1724861499366,-2050.11,0.00024242,5]
[336472688,1724861499375,-500.0,0.00024242,5]
[336472689,1724861499385,-1938.39,0.00024242,5]
[336472690,1724861499396,-521.26361023,0.00024242,5]
[336472691,1724861499407,-3053.04,0.00024242,5]
[336472692,1724861499416,-2059.73,0.00024242,5]
[336472693,1724861499425,-233.64773225,0.00024242,5]
[336472694,1724861499437,-1762.74,0.00024242,5]
[336472695,1724861499447,-1881.79,0.00024243,5]
[336472696,1724861499456,-4789.79,0.00024243,5]
[336472697,1724861499466,-2011.7,0.00024243,5]
[336472698,1724861499476,-1624.46,0.00024243,5]
[336472699,1724861499487,-1132.43,0.00024243,5]
[336472700,1724861499498,-364.42,0.00024243,5]
[336472701,1724861499509,-1847.91,0.00024283,5]
[336472702,1724861499523,-1019.59,0.00024283,5]
[336472703,1724861499533,-1247.82,0.00024283,5]
[336472704,1724861499543,-1867.86,0.00024283,5]
[336472705,1724861499555,-2205.0,0.00024283,5]
[336472706,1724861499566,-1306.88,0.00024283,5]
[336472707,1724861499576,-1564.33,0.00024283,5]
[336472708,1724861499586,-500.0,0.00024283,5]
[336472709,1724861499595,-1003.11,0.00024283,5]
[336472710,1724861499605,-1403.9,0.00024283,5]
[336472711,1724861499615,-210.55519294,0.00024283,5]
[336472712,1724861499626,-500.0,0.00024297,2]
[336472713,1724861499635,-1844.52,0.00024311,5]
[336472714,1724861499645,-1669.64,0.00024311,5]
[336472715,1724861499655,-830.36,0.00024311,5]
[336472716,1724861499665,-855.87,0.00024311,5]
[336472717,1724861499674,-1514.19,0.00024311,5]
[336472718,1724861499683,-1583.58,0.00024311,5]
[336472719,1724861499693,-1033.16,0.00024311,5]
[336472720,1724861499703,-500.0,0.00024311,5]
[336472721,1724861499712,-1188.18,0.00024311,5]
[336472722,1724861499722,-1477.27,0.00024311,5]
[336472723,1724861499732,-1202.37,0.00024311,5]
[336472724,1724861499742,-500.0,0.00024312,5]
[336472725,1724861499751,-823.28,0.00024312,5]
[336472726,1724861499761,-1111.6,0.00024312,5]
[336472727,1724861499772,-1047.6,0.00024312,5]
[336472728,1724861499782,-525.60376694,0.00024373,5]
[336472729,1724861499791,-975.97,0.00024373,5]
[336472730,1724861499801,-153.0,0.00024462,2]
[336472731,1724861499810,-500.0,0.00024504,5]
[336472732,1724861499820,-4995.28,0.00024505,5]
[336472733,1724861499829,-1834.9,0.00024505,5]
[336472734,1724861499838,-1963.25,0.00024505,5]
[336472735,1724861499848,-2904.94,0.00024505,5]
[336472736,1724861499858,-7393.53,0.00024505,5]
[336472737,1724861499867,-788.02,0.00024505,5]
[336472738,1724861499877,-7405.77,0.00024505,5]
[336472739,1724861499886,-1909.51,0.00024505,5]
[336472740,1724861499897,-2303.49,0.00024505,5]
[336472741,1724861499907,-2897.7,0.00024505,5]
[336472742,1724861499917,-1046.34,0.00024505,5]
[336472743,1724861499927,-1283.62,0.00024505,5]
[336472744,1724861499937,-1871.86,0.00024505,5]
[336472745,1724861499946,-7433.18,0.00024515,5]
[336472746,1724861499956,-5212.58,0.00024515,5]
[336472747,1724861499968,-1640.83,0.00024515,5]
[336472748,1724861499978,-4365.01,0.00024515,5]
[336472749,1724861499987,-12675.43,0.00024515,5]
[336472750,1724861499996,-3008.32,0.00024515,5]
[336472751,1724861500007,-3478.62,0.00024515,5]
[336472752,1724861500016,-500.0,0.00024516,5]
[336472753,1724861500028,-500.0,0.00024516,5]
[336472754,1724861500038,-891.13,0.00024516,5]
[336472755,1724861500049,-1064.58,0.00024516,5]
[336472756,1724861500060,-502.03,0.00024516,5]
[336472757,1724861500069,-963.81,0.00024516,5]
[336472758,1724861500079,-1575.71,0.00024516,5]
[336472759,1724861500089,-500.0,0.00024516,5]
[336472760,1724861500098,-2441.06,0.00024516,5]
[336472761,1724861500108,-2445.65,0.00024516,5]
[336472762,1724861500118,-3605.34,0.00024516,5]
[336472763,1724861500127,-7804.01,0.00024516,5]
[336472764,1724861500140,-6989.42,0.00024516,5]
[336472765,1724861500149,-3432.15,0.00024516,5]
[336472766,1724861500159,-931.19,0.00024516,5]
[336472767,1724861500170,-817.55,0.00024516,5]
[336472768,1724861500181,-1715.86,0.00024516,5]
[336472769,1724861500190,-2215.78,0.00024516,5]
[336472770,1724861500201,-991.34,0.00024516,5]
[336472771,1724861500210,-1028.21,0.00024516,5]
[336472772,1724861500222,-1049.04,0.00024516,5]
[336472773,1724861500231,-500.0,0.00024516,5]
[336472774,1724861500241,-1574.19,0.00024516,5]
[336472775,1724861500250,-1419.19,0.00024516,5]
[336472776,1724861500260,-3455.34,0.00024516,5]
[336472777,1724861500271,-1220.18,0.00024516,5]
[336472778,1724861500281,-787.68,0.00024516,5]
[336472779,1724861500290,-1574.41,0.00024516,5]
[336472780,1724861500299,-1161.17,0.00024516,5]
[336472781,1724861500308,-1086.03,0.00024516,5]
[336472782,1724861500318,-2104.49,0.00024516,5]
[336472783,1724861500328,-2447.77,0.00024516,5]
[336472784,1724861500337,-2050.11,0.00024516,5]
[336472785,1724861500346,-274.96275438,0.00024516,5]
[336472786,1724861500355,-1938.39,0.00024516,5]
[336472787,1724861500365,-3053.04,0.00024516,5]
[336472788,1724861500375,-2059.73,0.00024516,5]
[336472789,1724861500384,-1762.74,0.00024516,5]
[336472790,1724861500394,-1881.79,0.00024517,5]
[336472791,1724861500403,-4789.79,0.00024517,5]
[336472792,1724861500413,-2011.7,0.00024517,5]
[336472793,1724861500422,-1624.46,0.00024517,5]
[336472794,1724861500432,-1132.43,0.00024517,5]
[336472795,1724861500443,-500.0,0.00024526,2]
[336472796,1724861500452,-181.86820509,0.00024545,2]
[336472797,1724861500461,-1847.91,0.00024557,5]
[336472798,1724861500470,-1019.59,0.00024557,5]
[336472799,1724861500480,-1247.82,0.00024557,5]
[336472800,1724861500489,-1867.86,0.00024557,5]
[336472801,1724861500499,-2205.0,0.00024557,5]
[336472802,1724861500508,-1306.88,0.00024557,5]
[336472803,1724861500518,-1564.33,0.00024557,5]
[336472804,1724861500530,-576.14396587,0.00024557,5]
[336472805,1724861500540,-1003.11,0.00024557,5]
[336472806,1724861500549,-1403.9,0.00024557,5]
[336472807,1724861500558,-1844.52,0.00024585,5]
[336472808,1724861500568,-1669.64,0.00024585,5]
[336472809,1724861500686,-830.36,0.00024585,5]
[336472810,1724861500696,-855.87,0.00024585,5]
[336472811,1724861500707,-1514.19,0.00024585,5]
[336472812,1724861500716,-1583.58,0.00024585,5]
[336472813,1724861500726,-1033.16,0.00024585,5]
[336472814,1724861500736,-500.0,0.00024585,5]
[336472815,1724861500746,-1188.18,0.00024585,5]
[336472816,1724861500755,-1477.27,0.00024585,5]
[336472817,1724861500765,-1202.37,0.00024585,5]
[336472818,1724861500780,-500.0,0.00024586,5]
[336472819,1724861500789,-823.28,0.00024586,5]
[336472820,1724861500800,-1111.6,0.00024586,5]
[336472821,1724861500810,-1047.6,0.00024586,5]
[336472822,1724861500820,-500.0,0.00024605,2]
[336472823,1724861500829,-975.97,0.00024647,5]
[336472824,1724861500840,-500.0,0.00024657,2]
[336472825,1724861500850,-500.0,0.00024657,2]
[336472826,1724861500861,-501.32404493,0.00024657,2]
[336472827,1724861500871,-380.0,0.00024658,2]
[336472828,1724861500881,-200.0,0.00024658,15]
[336472829,1724861500890,-200.0,0.00024658,2]
[336472830,1724861500900,-240.66,0.000247,31]
[336472831,1724861500909,-240.66,0.000247,31]
[336472832,1724861500918,-240.66,0.000247,31]
[336472833,1724861500928,-240.66,0.000247,31]
[336472834,1724861500938,-240.66,0.000247,31]
[336472835,1724861500948,-240.66,0.000247,31]
[336472836,1724861500957,-240.66,0.000247,31]
[336472837,1724861500967,-240.66,0.000247,31]
[336472838,1724861500975,-240.66,0.000247,31]
[336472839,1724861500985,-240.66,0.000247,31]
[336472840,1724861500994,-240.66,0.000247,31]
[336472841,1724861501003,-240.66,0.000247,31]
[336472842,1724861501013,-240.66,0.000247,31]
[336472843,1724861501025,-240.66,0.000247,31]
[336472844,1724861501035,-240.66,0.000247,31]
[336472845,1724861501045,-240.66,0.000247,31]
[336472846,1724861501054,-240.66,0.000247,31]
[336472847,1724861501063,-240.66,0.000247,31]
[336472848,1724861501072,-240.66,0.000247,31]
[336472849,1724861501081,-240.66,0.000247,31]
[336472850,1724861501090,-240.66,0.000247,31]
[336472851,1724861501099,-240.66,0.000247,31]
[336472852,1724861501110,-240.66,0.000247,31]
[336472853,1724861501119,-240.66,0.000247,31]
[336472854,1724861501130,-430.86652786,0.00024778,5]
[336472855,1724861501141,-4995.28,0.00024779,5]
[336472856,1724861501152,-1834.9,0.00024779,5]
[336472857,1724861501161,-1963.25,0.00024779,5]
[336472858,1724861501171,-7393.53,0.00024779,5]
[336472859,1724861501182,-788.02,0.00024779,5]
[336472860,1724861501191,-7405.77,0.00024779,5]
[336472861,1724861501201,-1909.51,0.00024779,5]
[336472862,1724861501211,-2303.49,0.00024779,5]
[336472863,1724861501220,-2897.7,0.00024779,5]
[336472864,1724861501231,-1046.34,0.00024779,5]
[336472865,1724861501241,-1283.62,0.00024779,5]
[336472866,1724861501251,-1871.86,0.00024779,5]
[336472867,1724861501260,-7433.18,0.00024789,5]
[336472868,1724861501273,-5212.58,0.00024789,5]
[336472869,1724861501282,-1640.83,0.00024789,5]
[336472870,1724861501291,-4365.01,0.00024789,5]
[336472871,1724861501300,-12675.43,0.00024789,5]
[336472872,1724861501310,-3008.32,0.00024789,5]
[336472873,1724861501319,-3478.62,0.00024789,5]
[336472874,1724861501329,-500.0,0.0002479,5]
[336472875,1724861501338,-150.24933527,0.0002479,5]
[336472876,1724861501347,-891.13,0.0002479,5]
[336472877,1724861501357,-1064.58,0.0002479,5]
[336472878,1724861501366,-502.03,0.0002479,5]
[336472879,1724861501375,-963.81,0.0002479,5]
[336472880,1724861501385,-1575.71,0.0002479,5]
[336472881,1724861501394,-374.10477535,0.0002479,5]
[336472882,1724861501403,-2441.06,0.0002479,5]
[336472883,1724861501413,-2445.65,0.0002479,5]
[336472884,1724861501422,-3605.34,0.0002479,5]
[336472885,1724861501432,-7804.01,0.0002479,5]
[336472886,1724861501443,-6989.42,0.0002479,5]
[336472887,1724861501452,-3432.15,0.0002479,5]
[336472888,1724861501462,-931.19,0.0002479,5]
[336472889,1724861501472,-817.55,0.0002479,5]
[336472890,1724861501481,-1715.86,0.0002479,5]
[336472891,1724861501491,-2215.78,0.0002479,5]
[336472892,1724861501500,-1028.21,0.0002479,5]
[336472893,1724861501510,-991.34,0.0002479,5]
[336472894,1724861501519,-1049.04,0.0002479,5]
[336472895,1724861501535,-500.0,0.0002479,5]
[336472896,1724861501544,-1574.19,0.0002479,5]
[336472897,1724861501554,-1419.19,0.0002479,5]
[336472898,1724861501563,-3455.34,0.0002479,5]
[336472899,1724861501572,-1220.18,0.0002479,5]
[336472900,1724861501582,-787.68,0.0002479,5]
[336472901,1724861501591,-1574.41,0.0002479,5]
[336472902,1724861501601,-1161.17,0.0002479,5]
[336472903,1724861501611,-1086.03,0.0002479,5]
[336472904,1724861501620,-2104.49,0.0002479,5]
[336472905,1724861501631,-2447.77,0.0002479,5]
[336472906,1724861501640,-2050.11,0.0002479,5]
[336472907,1724861501650,-1938.39,0.0002479,5]
[336472908,1724861501660,-3053.04,0.0002479,5]
[336472909,1724861501670,-2059.73,0.0002479,5]
[336472910,1724861501680,-1762.74,0.0002479,5]
[336472911,1724861501691,-1881.79,0.00024791,5]
[336472912,1724861501701,-4789.79,0.00024791,5]
[336472913,1724861501711,-2011.7,0.00024791,5]
[336472914,1724861501720,-1624.46,0.00024791,5]
[336472915,1724861501730,-1132.43,0.00024791,5]
[336472916,1724861501740,-1847.91,0.00024831,5]
[336472917,1724861501749,-1019.59,0.00024831,5]
[336472918,1724861501758,-1247.82,0.00024831,5]
[336472919,1724861501767,-1867.86,0.00024831,5]
[336472920,1724861501780,-2205.0,0.00024831,5]
[336472921,1724861501792,-1306.88,0.00024831,5]
[336472922,1724861501801,-1564.33,0.00024831,5]
[336472923,1724861501810,-1003.11,0.00024831,5]
[336472924,1724861501820,-1403.9,0.00024831,5]
[336472925,1724861501829,-465.00000097,0.00024834,2]
[336472926,1724861501840,-500.0,0.00024834,2]
[336472927,1724861501852,-500.0,0.00024851,2]
[336472928,1724861501861,-1844.52,0.00024859,5]
[336472929,1724861501870,-1669.64,0.00024859,5]
[336472930,1724861501880,-830.36,0.00024859,5]
[336472931,1724861501891,-855.87,0.00024859,5]
[336472932,1724861501900,-1514.19,0.00024859,5]
[336472933,1724861501911,-1583.58,0.00024859,5]
[336472934,1724861501921,-1033.16,0.00024859,5]
[336472935,1724861501931,-168.4724918,0.00024859,5]
[336472936,1724861501941,-1188.18,0.00024859,5]
[336472937,1724861501951,-1477.27,0.00024859,5]
[336472938,1724861501962,-1202.37,0.00024859,5]
[336472939,1724861501972,-500.0,0.0002486,5]
[336472940,1724861501981,-823.28,0.0002486,5]
[336472941,1724861501992,-1111.6,0.0002486,5]
[336472942,1724861502001,-1047.6,0.0002486,5]
[336472943,1724861502012,-173.96784653,0.00024895,2]
[336472944,1724861502025,-975.97,0.00024921,5]
[336472945,1724861502036,-3000.0,0.00024988,2]
[336472946,1724861502047,-160.0,0.00024999,2]
[336472947,1724861502058,-1000.5,0.00025,31]
[336472948,1724861502070,-500.5,0.00025,31]
[336472949,1724861502079,-491.1,0.00025,31]
[336472950,1724861502090,-154.79103211,0.00025,2]
[336472951,1724861502100,-154.77876143,0.00025,2]
[336472952,1724861502110,-191.42852985,0.00025,2]
[336472953,1724861502120,-1029.76145637,0.00025,2]
[336472954,1724861502131,-17308.94281415,0.00025,2]
[336472955,1724861502319,-6694.32049718,0.00025,2]
[336472961,1724861565807,26617.11100001,0.00025,120]
[336472966,1724861595776,26617.11,0.00025,120]
[336472971,1724861655571,688.57877988,0.00013971,2]
[336472972,1724861697307,157.05258861,0.00013971,2]
[336472973,1724861730346,490.42496394,0.00013971,2]
[336472974,1724861733032,158.70110161,0.00013971,2]
[336472975,1724861741580,405.69820043,0.00013971,2]
[336472976,1724861742483,16329.96101397,0.00013971,2]
[336472977,1724861756356,1199.93360904,0.00013971,2]
[336472978,1724861757378,1790.34972278,0.00013971,2]
[336472998,1724862253008,1011.87,0.00023,60]
[336473002,1724862339652,154.63660398,0.00013971,2]
[336473003,1724862340306,154.60575532,0.00013971,2]
[336473009,1724862374279,500.0,0.00025,120]
[336473010,1724862374564,241.78,0.00025,120]
[336473011,1724862377372,154.62117811,0.00013971,2]
[336473012,1724862431122,-197.211467,0.00014247,2]
[336473013,1724862431145,-675.659039,0.00014247,2]
[336473014,1724862431168,-500.0,0.00015265,2]
[336473015,1724862431192,-500.0,0.00016068,2]
[336473016,1724862431216,-181.86820509,0.00016872,2]
[336473017,1724862431239,-154.59033561,0.00016915,2]
[336473018,1724862431261,-987.553263,0.0001767,2]
[336473019,1724862431284,-500.0,0.00018537,2]
[336473020,1724862431312,-500.0,0.00018546,2]
[336473021,1724862431339,-668.86411,0.00018904,2]
[336473022,1724862431369,-300.0,0.00018999,2]
[336473023,1724862431395,-8358.57745656,0.00019,2]
[336473024,1724862431418,-500.0,0.0001936,2]
[336473025,1724862431442,-630.8025474,0.00019477,2]
[336473026,1724862431470,-500.0,0.00019553,2]
[336473027,1724862431494,-500.0,0.00019553,2]
[336473028,1724862431519,-500.0,0.00019553,2]
[336473029,1724862431543,-500.0,0.00019553,2]
[336473030,1724862431574,-500.0,0.00019553,2]
[336473031,1724862431596,-500.0,0.00019553,2]
[336473032,1724862431619,-902.2,0.00019553,2]
[336473033,1724862431642,-500.0,0.00019553,2]
[336473034,1724862431664,-500.0,0.00019553,2]
[336473035,1724862431686,-1725.47485262,0.00019554,2]
[336473036,1724862431708,-500.0,0.00019562,2]
[336473037,1724862431730,-68734.823489,0.00019563,2]
[336473038,1724862431752,-500.0,0.0001957,2]
[336473039,1724862431775,-531.15099816,0.0001957,2]
[336473040,1724862431808,-500.0,0.0001957,2]
[336473041,1724862431831,-500.0,0.0001957,2]
[336473042,1724862431856,-500.0,0.00019571,2]
[336473043,1724862431878,-188.94886557,0.00019571,2]
[336473044,1724862431907,-311.05113443,0.00019571,2]
[336473045,1724862431929,-500.0,0.00019571,2]
[336473046,1724862431951,-38.42710547,0.00019571,2]
[336473047,1724862438140,-454.153976,0.00019571,2]
[336473048,1724862443145,-7.41891853,0.00019571,2]
[336473049,1724862443169,-500.0,0.00019571,2]
[336473050,1724862443191,-500.0,0.00019571,2]
[336473051,1724862443213,-500.0,0.00019571,2]
[336473052,1724862443236,-500.0,0.00019571,2]
[336473053,1724862443258,-500.0,0.00019571,2]
[336473054,1724862443280,-500.0,0.00019571,2]
[336473055,1724862443305,-500.0,0.00019571,2]
[336473056,1724862443328,-500.0,0.00019571,2]
[336473057,1724862443349,-500.0,0.00019571,2]
[336473058,1724862443373,-874.21,0.00019571,2]
[336473059,1724862443396,-500.0,0.00019571,2]
[336473060,1724862443417,-500.0,0.00019571,2]
[336473061,1724862443439,-500.0,0.00019571,2]
[336473062,1724862443462,-500.0,0.00019571,2]
[336473063,1724862443488,-626.03,0.00019571,2]
[336473064,1724862443511,-500.0,0.00019571,2]
[336473065,1724862443533,-500.0,0.00019571,2]
[336473066,1724862443557,-1234.29,0.00019571,2]
[336473067,1724862443579,-439.375349,0.00019571,2]
[336473069,1724862520809,604.20179986,0.00014,4]
[336473070,1724862524255,1402.01005657,0.00014,2]
[336473071,1724862524856,21252.43346867,0.0001,2]
[336473072,1724862526280,6084.16683956,0.0002,120]
[336473118,1724862634860,-300.0,0.00017999,2]
[336473119,1724862634872,-9767.39151561,0.00018,2]
[336473120,1724862634883,-500.0,0.00018508,2]
[336473121,1724862634893,-500.0,0.00018604,2]
[336473122,1724862634903,-500.0,0.00018624,2]
[336473123,1724862634913,-500.0,0.00018654,2]
[336473124,1724862634922,-500.0,0.00018867,2]
[336473125,1724862634932,-504.64203792,0.00019477,2]
[336473126,1724862634946,-500.0,0.00019512,2]
[336473127,1724862634957,-500.0,0.00019553,2]
[336473128,1724862634966,-500.0,0.00019553,2]
[336473129,1724862634976,-500.0,0.00019553,2]
[336473130,1724862634986,-500.0,0.00019553,2]
[336473131,1724862634996,-500.0,0.00019562,2]
[336473132,1724862635006,-837.78,0.00019562,2]
[336473133,1724862635016,-500.0,0.00019562,2]
[336473134,1724862635026,-599.95,0.00019562,2]
[336473135,1724862635035,-500.0,0.00019562,2]
[336473136,1724862635045,-1232.26,0.00019562,2]
[336473137,1724862635055,-500.0,0.00019562,2]
[336473138,1724862635066,-500.0,0.00019562,2]
[336473139,1724862635075,-1182.86,0.00019562,2]
[336473140,1724862635086,-500.0,0.00019562,2]
[336473141,1724862635096,-500.0,0.00019562,2]
[336473142,1724862635106,-500.0,0.00019562,2]
[336473143,1724862635114,-500.0,0.00019562,2]
[336473144,1724862635123,-510.42,0.00019562,2]
[336473145,1724862635133,-500.0,0.00019562,2]
[336473146,1724862635144,-500.0,0.00019562,2]
[336473147,1724862635155,-6443.88970206,0.00019563,2]
[336473148,1724862635164,-9665.83455309,0.00019564,2]
[336473149,1724862635173,-500.0,0.0001957,2]
[336473150,1724862635183,-224.99246146,0.0001957,2]
[336473151,1724862635198,-500.0,0.0001957,2]
[336473152,1724862635212,-230.98555981,0.0001957,2]
[336473153,1724862635229,-269.01444019,0.0001957,2]
[336473154,1724862635240,-418.83522086,0.0001957,2]
[336473155,1724862635250,-500.0,0.0001957,2]
[336473156,1724862635260,-500.0,0.00019571,2]
[336473157,1724862635270,-500.0,0.00019571,2]
[336473158,1724862635281,-500.0,0.00019571,2]
[336473159,1724862635292,-500.0,0.00019571,2]
[336473160,1724862635302,-500.0,0.00019571,2]
[336473161,1724862635313,-500.0,0.00019571,2]
[336473162,1724862635324,-520.93139619,0.00019571,2]
[336473163,1724862635334,-500.0,0.00019571,2]
[336473164,1724862635344,-500.0,0.00019571,2]
[336473165,1724862635355,-101.21894276,0.00019571,2]
[336473166,1724862635368,-398.78105724,0.00019571,2]
[336473167,1724862635379,-500.0,0.00019571,2]
[336473168,1724862635389,-500.0,0.00019571,2]
[336473169,1724862635399,-500.0,0.00019571,2]
[336473170,1724862635409,-4873.53,0.00019571,2]
[336473171,1724862635420,-258.96752197,0.00019571,2]
[336473172,1724862635429,-500.0,0.00019571,2]
[336473173,1724862635448,-500.98528648,0.00019571,2]
[336473174,1724862635457,-500.94892432,0.00019571,2]
[336473175,1724862635467,-500.0,0.00019571,2]
[336473176,1724862635476,-500.0,0.00019571,2]
[336473177,1724862635486,-1238.87,0.00019571,2]
[336473178,1724862635495,-500.0,0.00019571,2]
[336473179,1724862635505,-500.0,0.00019571,2]
[336473180,1724862635514,-903.36,0.00019571,2]
[336473181,1724862635523,-1353.05,0.00019571,2]
[336473182,1724862635533,-500.0,0.00019571,2]
[336473183,1724862635542,-500.0,0.00019571,2]
[336473184,1724862635555,-500.0,0.00019571,2]
[336473185,1724862635564,-592.86,0.00019571,2]
[336473186,1724862635574,-500.0,0.00019571,2]
[336473187,1724862635583,-500.0,0.00019571,2]
[336473188,1724862635595,-500.0,0.00019571,2]
[336473189,1724862635606,-500.0,0.00019571,2]
[336473190,1724862635615,-500.0,0.00019571,2]
[336473191,1724862635626,-500.0,0.00019571,2]
[336473192,1724862635636,-500.0,0.00019571,2]
[336473193,1724862635645,-500.0,0.00019571,2]
[336473194,1724862635655,-500.0,0.00019571,2]
[336473195,1724862635665,-500.0,0.00019571,2]
[336473196,1724862635675,-500.0,0.00019571,2]
[336473197,1724862635685,-500.0,0.00019571,2]
[336473198,1724862635694,-500.0,0.00019571,2]
[336473199,1724862635703,-500.0,0.00019571,2]
[336473200,1724862635712,-500.0,0.00019571,2]
[336473201,1724862635721,-500.0,0.00019571,2]
[336473202,1724862635731,-500.0,0.00019571,2]
[336473203,1724862635741,-500.0,0.00019571,2]
[336473204,1724862635750,-500.0,0.00019571,2]
[336473205,1724862635759,-767.01,0.00019571,2]
[336473206,1724862635769,-500.0,0.00019571,2]
[336473207,1724862635779,-610.81,0.00019571,2]
[336473208,1724862635788,-500.0,0.00019571,2]
[336473209,1724862635799,-500.0,0.00019571,2]
[336473210,1724862635808,-500.0,0.00019571,2]
[336473211,1724862635817,-500.0,0.00019571,2]
[336473212,1724862635827,-500.0,0.00019571,2]
[336473213,1724862635836,-500.0,0.00019571,2]
[336473214,1724862635846,-421.80569871,0.00019571,2]
[336473215,1724862635856,-500.0,0.00019571,2]
[336473216,1724862635866,-500.0,0.00019571,2]
[336473217,1724862635875,-500.0,0.00019571,2]
[336473218,1724862635885,-500.0,0.00019571,2]
[336473219,1724862635895,-500.0,0.00019571,2]
[336473220,1724862635905,-500.0,0.00019571,2]
[336473221,1724862635915,-500.0,0.00019571,2]
[336473222,1724862635925,-500.0,0.00019571,2]
[336473223,1724862635935,-500.0,0.00019571,2]
[336473224,1724862635955,-500.0,0.00019571,2]
[336473225,1724862635965,-500.0,0.00019571,2]
[336473226,1724862635975,-500.0,0.00019571,2]
[336473227,1724862635985,-295.1176766,0.00019571,2]
[336473228,1724862635994,-500.0,0.00019571,2]
[336473229,1724862636004,-500.0,0.00019571,2]
[336473230,1724862636013,-545.38,0.00019571,2]
[336473231,1724862636023,-2362.77,0.00019571,2]
[336473232,1724862636032,-500.0,0.00019571,2]
[336473233,1724862636042,-500.0,0.00019571,2]
[336473234,1724862636052,-504.18176821,0.00019571,2]
[336473235,1724862636062,-500.0,0.00019571,2]
[336473236,1724862636071,-500.0,0.00019571,2]
[336473237,1724862636081,-501.38,0.00019571,2]
[336473238,1724862636090,-1292.26,0.00019571,2]
[336473239,1724862636099,-500.0,0.00019571,2]
[336473240,1724862636109,-500.0,0.00019571,2]
[336473241,1724862636118,-500.0,0.00019571,2]
[336473242,1724862636127,-500.0,0.00019571,2]
[336473243,1724862636138,-500.0,0.00019571,2]
[336473244,1724862636147,-579.77,0.00019571,2]
[336473245,1724862636157,-500.0,0.00019571,2]
[336473246,1724862636166,-500.0,0.00019571,2]
[336473247,1724862636175,-500.0,0.00019571,2]
[336473248,1724862636185,-500.0,0.00019571,2]
[336473249,1724862636203,-500.0,0.00019571,2]
[336473250,1724862636213,-500.0,0.00019571,2]
[336473251,1724862636222,-500.0,0.00019571,2]